[Event "*** MasterClass Titled Tuesday Blitz"]
[Site "Chess.com"]
[Date "2017.07.04"]
[Round "6"]
[White "abubakrtagelsir"]
[Black "michaelk123"]
[Result "1-0"]
[WhiteElo "2181"]
[BlackElo "2282"]
[TimeControl "180+2"]
[EndTime "14:23:09 PDT"]
[Termination "abubakrtagelsir won by resignation"]

1. e4 {[%clk 0:02:58.5]} 1... c5 {[%clk 0:03:00.7]} 2. Nc3 {[%clk 0:02:58.5]}
2... e6 {[%clk 0:03:01.8]} 3. f4 {[%clk 0:02:58.6]} 3... d5 {[%clk 0:03:00.4]}
4. Nf3 {[%clk 0:02:58.3]} 4... a6 {[%clk 0:02:59.8]} 5. g3 {[%clk 0:02:57.3]}
5... d4 {[%clk 0:02:51.3]} 6. Nb1 {[%clk 0:02:55.9]} 6... b5 {[%clk 0:02:47.2]}
7. d3 {[%clk 0:02:55.8]} 7... Bb7 {[%clk 0:02:48.1]} 8. Bg2 {[%clk 0:02:56.4]}
8... Nd7 {[%clk 0:02:42.6]} 9. O-O {[%clk 0:02:56.7]} 9... Qb6 {[%clk
0:02:40.5]} 10. a4 {[%clk 0:02:55.9]} 10... Ngf6 {[%clk 0:02:37.1]} 11. axb5
{[%clk 0:02:54]} 11... axb5 {[%clk 0:02:37.8]} 12. Rxa8+ {[%clk 0:02:54]} 12...
Bxa8 {[%clk 0:02:39.7]} 13. Na3 {[%clk 0:02:50.5]} 13... Be7 {[%clk 0:02:39.2]}
14. h3 {[%clk 0:02:46]} 14... O-O {[%clk 0:02:35.6]} 15. g4 {[%clk 0:02:44.6]}
15... c4 {[%clk 0:02:25.6]} 16. Nb1 {[%clk 0:02:40.6]} 16... Nxe4 {[%clk
0:02:07.4]} 17. dxe4 {[%clk 0:02:37.6]} 17... d3+ {[%clk 0:02:08.7]} 18. Kh1
{[%clk 0:02:36]} 18... Bxe4 {[%clk 0:02:08.3]} 19. c3 {[%clk 0:02:26.7]} 19...
Nc5 {[%clk 0:02:03.3]} 20. Be3 {[%clk 0:02:24.4]} 20... Qb7 {[%clk 0:01:54]} 21.
Nbd2 {[%clk 0:02:22.9]} 21... Na4 {[%clk 0:01:47.6]} 22. Nxe4 {[%clk 0:02:17.6]}
22... Qxe4 {[%clk 0:01:46.9]} 23. Qd2 {[%clk 0:02:17.5]} 23... Qb7 {[%clk
0:01:05.9]} 24. Nd4 {[%clk 0:02:16.1]} 24... Qd7 {[%clk 0:01:05.1]} 25. Bc6
{[%clk 0:02:14.8]} 25... Qd6 {[%clk 0:01:00.4]} 26. Bxb5 {[%clk 0:02:13.6]}
26... Qd5+ {[%clk 0:00:29.9]} 27. Kg1 {[%clk 0:01:59.6]} 27... Nc5 {[%clk
0:00:28.1]} 28. Bc6 {[%clk 0:01:48.3]} 28... Qd6 {[%clk 0:00:27.9]} 29. Bg2
{[%clk 0:01:44]} 29... Bf6 {[%clk 0:00:28.5]} 30. Nb5 {[%clk 0:00:57.1]} 30...
Qb6 {[%clk 0:00:22.5]} 31. Na3 {[%clk 0:00:57]} 31... Nb3 {[%clk 0:00:15.6]} 32.
Qxd3 {[%clk 0:00:49]} 32... cxd3 {[%clk 0:00:05.9]} 33. Bxb6 {[%clk 0:00:47.5]}
33... Rb8 {[%clk 0:00:06.3]} 34. Be3 {[%clk 0:00:46.9]} 34... Na5 {[%clk
0:00:05.8]} 35. Rf2 {[%clk 0:00:43.9]} 35... g6 {[%clk 0:00:05.3]} 36. Bf1
{[%clk 0:00:41.2]} 36... Nb3 {[%clk 0:00:04.7]} 37. Bxd3 {[%clk 0:00:40.8]}
37... Rd8 {[%clk 0:00:06.3]} 38. Bf1 {[%clk 0:00:40.4]} 38... Bh4 {[%clk
0:00:05.3]} 39. Rc2 {[%clk 0:00:38.3]} 39... Rd1 {[%clk 0:00:06.5]} 40. Kg2
{[%clk 0:00:38.8]} 40... Na1 {[%clk 0:00:07.1]} 41. Rd2 {[%clk 0:00:39.1]} 41...
Re1 {[%clk 0:00:08.4]} 42. Bf2 {[%clk 0:00:39.3]} 42... Bxf2 {[%clk 0:00:10]}
43. Kxf2 {[%clk 0:00:40.2]} 43... Rc1 {[%clk 0:00:11.7]} 44. Be2 {[%clk
0:00:40.1]} 44... Nb3 {[%clk 0:00:12.4]} 45. Rd8+ {[%clk 0:00:40.7]} 45... Kg7
{[%clk 0:00:12.2]} 46. Rd1 {[%clk 0:00:40.9]} 46... h5 {[%clk 0:00:06.3]} 47.
Rxc1 {[%clk 0:00:40.7]} 47... Nxc1 {[%clk 0:00:08.2]} 48. b4 {[%clk 0:00:41.5]}
48... hxg4 {[%clk 0:00:07.7]} 49. hxg4 {[%clk 0:00:42.4]} 49... Nb3 {[%clk
0:00:09.1]} 50. Ke3 {[%clk 0:00:38.6]} 50... Kf6 {[%clk 0:00:08.8]} 51. Bd1
{[%clk 0:00:39.2]} 1-0

[Event "*** MasterClass Titled Tuesday Blitz"]
[Site "Chess.com"]
[Date "2017.07.04"]
[Round "6"]
[White "AdrianaNikolova"]
[Black "IamSchrodingersCat"]
[Result "0-1"]
[WhiteElo "2306"]
[BlackElo "2426"]
[TimeControl "180+2"]
[EndTime "14:23:25 PDT"]
[Termination "IamSchrodingersCat won on time"]

1. e4 {[%clk 0:03:01.9]} 1... c5 {[%clk 0:03:00.3]} 2. Nf3 {[%clk 0:03:00.5]}
2... d6 {[%clk 0:03:00]} 3. d4 {[%clk 0:03:01.4]} 3... cxd4 {[%clk 0:03:01.9]}
4. Nxd4 {[%clk 0:03:03.2]} 4... Nf6 {[%clk 0:03:03]} 5. Nc3 {[%clk 0:03:04.7]}
5... g6 {[%clk 0:03:04.4]} 6. Be3 {[%clk 0:03:05.2]} 6... Bg7 {[%clk 0:03:05.8]}
7. Bc4 {[%clk 0:03:06.5]} 7... O-O {[%clk 0:03:07.2]} 8. f3 {[%clk 0:03:07.8]}
8... Nc6 {[%clk 0:03:08.5]} 9. Qd2 {[%clk 0:03:09.1]} 9... Bd7 {[%clk
0:03:09.4]} 10. O-O-O {[%clk 0:03:09.5]} 10... Rb8 {[%clk 0:03:10.6]} 11. Bb3
{[%clk 0:03:08.2]} 11... a5 {[%clk 0:03:10.9]} 12. a4 {[%clk 0:03:04.9]} 12...
Nxd4 {[%clk 0:03:11.2]} 13. Bxd4 {[%clk 0:03:05.4]} 13... b5 {[%clk 0:03:12.8]}
14. axb5 {[%clk 0:03:04.6]} 14... Bxb5 {[%clk 0:03:14.7]} 15. Nd5 {[%clk
0:02:49.4]} 15... Nxd5 {[%clk 0:03:02.3]} 16. Bxg7 {[%clk 0:02:49.5]} 16... Kxg7
{[%clk 0:03:02.7]} 17. Bxd5 {[%clk 0:02:46.3]} 17... Qc7 {[%clk 0:02:48.8]} 18.
h4 {[%clk 0:02:32.4]} 18... h5 {[%clk 0:02:12.8]} 19. g4 {[%clk 0:02:30]} 19...
Rh8 {[%clk 0:02:12.2]} 20. gxh5 {[%clk 0:02:06.1]} 20... Rxh5 {[%clk 0:02:09]}
21. Rdg1 {[%clk 0:02:03.8]} 21... Qc5 {[%clk 0:01:55.2]} 22. Rg5 {[%clk
0:01:20.5]} 22... Rbh8 {[%clk 0:01:47.2]} 23. Rxh5 {[%clk 0:00:52]} 23... Rxh5
{[%clk 0:01:49.1]} 24. Qxa5 {[%clk 0:00:42.1]} 24... e6 {[%clk 0:01:36.1]} 25.
Bb3 {[%clk 0:00:36.9]} 25... Qe3+ {[%clk 0:01:35]} 26. Qd2 {[%clk 0:00:29.3]}
26... Qxf3 {[%clk 0:01:34.2]} 27. Re1 {[%clk 0:00:23.7]} 27... Rxh4 {[%clk
0:01:22.2]} 28. Qxd6 {[%clk 0:00:21.6]} 28... Rxe4 {[%clk 0:01:21.4]} 29. Rxe4
{[%clk 0:00:13.4]} 29... Qxe4 {[%clk 0:01:23.4]} 30. Kb1 {[%clk 0:00:08.1]}
30... g5 {[%clk 0:01:16.7]} 31. Qc5 {[%clk 0:00:04.6]} 31... Qf5 {[%clk
0:01:04]} 32. Qd4+ {[%clk 0:00:03.7]} 32... e5 {[%clk 0:00:58]} 33. Qc5 {[%clk
0:00:03.2]} 33... Bd7 {[%clk 0:00:57.5]} 34. Qe7 {[%clk 0:00:02.5]} 34... g4
{[%clk 0:00:52.4]} 35. Qh4 {[%clk 0:00:03]} 35... Qf6 {[%clk 0:00:39.4]} 36. Qg3
{[%clk 0:00:02.6]} 36... Qf4 {[%clk 0:00:39.2]} 37. Qc3 {[%clk 0:00:03.3]} 37...
g3 {[%clk 0:00:37.8]} 38. Ka2 {[%clk 0:00:04.6]} 38... g2 {[%clk 0:00:32.8]} 39.
Qc5 {[%clk 0:00:06]} 39... Qg5 {[%clk 0:00:27.9]} 40. Qg1 {[%clk 0:00:03]} 40...
e4 {[%clk 0:00:28.6]} 41. Bc4 {[%clk 0:00:02.6]} 41... Bh3 {[%clk 0:00:22.7]}
42. Be2 {[%clk 0:00:02.8]} 42... e3 {[%clk 0:00:20.4]} 43. b4 {[%clk 0:00:03.3]}
43... Qg3 {[%clk 0:00:21]} 44. Bc4 {[%clk 0:00:02.2]} 44... Qf2 {[%clk
0:00:21.2]} 45. Qh2 {[%clk 0:00:03.4]} 45... g1=Q {[%clk 0:00:18.8]} 46. Qe5+
{[%clk 0:00:04.2]} 46... Qf6 {[%clk 0:00:20.2]} 0-1

[Event "*** MasterClass Titled Tuesday Blitz"]
[Site "Chess.com"]
[Date "2017.07.04"]
[Round "6"]
[White "Vamostodorecto"]
[Black "Blitzking4444"]
[Result "1-0"]
[WhiteElo "2341"]
[BlackElo "2243"]
[TimeControl "180+2"]
[EndTime "14:23:36 PDT"]
[Termination "Vamostodorecto won by resignation"]

1. d4 {[%clk 0:03:01.9]} 1... Nf6 {[%clk 0:03:00.9]} 2. c4 {[%clk 0:03:02.4]}
2... g6 {[%clk 0:03:02.3]} 3. Nc3 {[%clk 0:03:03.1]} 3... d5 {[%clk 0:03:03.7]}
4. Bg5 {[%clk 0:03:00.1]} 4... Ne4 {[%clk 0:03:03.3]} 5. Nxe4 {[%clk 0:02:59.3]}
5... dxe4 {[%clk 0:03:05.2]} 6. Qd2 {[%clk 0:03:00]} 6... Bg7 {[%clk 0:03:04.6]}
7. e3 {[%clk 0:03:01.6]} 7... c5 {[%clk 0:02:36.3]} 8. d5 {[%clk 0:03:01.7]}
8... Qb6 {[%clk 0:02:19.7]} 9. O-O-O {[%clk 0:03:01.5]} 9... Nd7 {[%clk
0:01:42]} 10. Ne2 {[%clk 0:03:01.7]} 10... Ne5 {[%clk 0:01:38.1]} 11. Nc3 {[%clk
0:03:02.6]} 11... Bf5 {[%clk 0:01:30.4]} 12. d6 {[%clk 0:02:46.5]} 12... exd6
{[%clk 0:00:48.3]} 13. Nd5 {[%clk 0:02:34.3]} 13... Qc6 {[%clk 0:00:41.6]} 14.
Bf6 {[%clk 0:01:59]} 14... Bxf6 {[%clk 0:00:41.3]} 15. Nxf6+ {[%clk 0:02:00.5]}
15... Ke7 {[%clk 0:00:42.2]} 16. Nd5+ {[%clk 0:02:00.7]} 16... Kf8 {[%clk
0:00:38.9]} 17. f4 {[%clk 0:01:58.4]} 17... Nd3+ {[%clk 0:00:28.3]} 18. Bxd3
{[%clk 0:02:04]} 18... exd3 {[%clk 0:00:30.2]} 19. Qc3 {[%clk 0:02:00.8]} 19...
Rg8 {[%clk 0:00:20.4]} 20. Nf6 {[%clk 0:01:47.9]} 20... Rg7 {[%clk 0:00:20.5]}
21. g4 {[%clk 0:01:47.3]} 21... Be4 {[%clk 0:00:21]} 22. Rhf1 {[%clk 0:01:46.8]}
22... Rd8 {[%clk 0:00:14.7]} 23. f5 {[%clk 0:01:46.1]} 23... gxf5 {[%clk
0:00:09.6]} 24. gxf5 {[%clk 0:01:51.5]} 24... Rg2 {[%clk 0:00:08.3]} 25. Nxh7+
{[%clk 0:01:49]} 25... Ke8 {[%clk 0:00:03.8]} 26. Rd2 {[%clk 0:01:39.3]} 26...
Rxd2 {[%clk 0:00:03.2]} 27. Kxd2 {[%clk 0:01:39.3]} 27... d5 {[%clk 0:00:04.3]}
28. cxd5 {[%clk 0:01:34.7]} 28... Rxd5 {[%clk 0:00:02.8]} 29. Nf6+ {[%clk
0:01:34.7]} 29... Kd8 {[%clk 0:00:03.8]} 30. Nxd5 {[%clk 0:01:39.9]} 30... Qxd5
{[%clk 0:00:04.4]} 31. Rf4 {[%clk 0:01:34.4]} 31... Kc7 {[%clk 0:00:04]} 32. b3
{[%clk 0:01:31.5]} 32... Bxf5 {[%clk 0:00:04.6]} 33. e4 {[%clk 0:01:08.6]} 33...
Bxe4 {[%clk 0:00:03.3]} 34. Qc4 {[%clk 0:01:00.6]} 34... Qxc4 {[%clk 0:00:03.5]}
35. bxc4 {[%clk 0:01:02.5]} 35... Bg6 {[%clk 0:00:05.4]} 36. Rf6 {[%clk
0:01:06.8]} 36... Kd7 {[%clk 0:00:05.7]} 37. h4 {[%clk 0:01:00.9]} 37... Ke7
{[%clk 0:00:06.7]} 38. Rf3 {[%clk 0:00:57.4]} 38... Ke6 {[%clk 0:00:07.2]} 39.
Rg3 {[%clk 0:00:57.9]} 39... Ke5 {[%clk 0:00:07.7]} 40. h5 {[%clk 0:00:56.9]}
40... Bh7 {[%clk 0:00:07.3]} 41. Rg7 {[%clk 0:00:54.9]} 41... Bf5 {[%clk
0:00:05.3]} 42. Rxf7 {[%clk 0:00:55.5]} 42... Be6 {[%clk 0:00:06.2]} 43. Rxb7
{[%clk 0:00:55.1]} 43... Bxc4 {[%clk 0:00:05.9]} 44. h6 {[%clk 0:00:54.2]} 44...
Bg8 {[%clk 0:00:03.8]} 45. Rg7 {[%clk 0:00:48.7]} 45... Kd4 {[%clk 0:00:02.7]}
46. Rxg8 {[%clk 0:00:48.4]} 46... c4 {[%clk 0:00:04.6]} 47. Rd8+ {[%clk
0:00:49.2]} 47... Ke4 {[%clk 0:00:04.2]} 48. h7 {[%clk 0:00:49.1]} 1-0

[Event "*** MasterClass Titled Tuesday Blitz"]
[Site "Chess.com"]
[Date "2017.07.04"]
[Round "6"]
[White "DrVelja"]
[Black "grzechu96"]
[Result "1-0"]
[WhiteElo "2564"]
[BlackElo "2405"]
[TimeControl "180+2"]
[EndTime "14:24:05 PDT"]
[Termination "DrVelja won by resignation"]

1. e4 {[%clk 0:03:01.9]} 1... c5 {[%clk 0:03:01]} 2. b3 {[%clk 0:02:59.5]} 2...
e5 {[%clk 0:02:54.7]} 3. Bb2 {[%clk 0:02:57.7]} 3... Nc6 {[%clk 0:02:56]} 4. Bc4
{[%clk 0:02:55]} 4... Nf6 {[%clk 0:02:56.3]} 5. Nc3 {[%clk 0:02:55.5]} 5... d6
{[%clk 0:02:57.3]} 6. Nge2 {[%clk 0:02:54.5]} 6... g6 {[%clk 0:02:52.4]} 7. O-O
{[%clk 0:02:54]} 7... Bg7 {[%clk 0:02:53.9]} 8. d3 {[%clk 0:02:55]} 8... O-O
{[%clk 0:02:55.4]} 9. f4 {[%clk 0:02:54.7]} 9... exf4 {[%clk 0:02:55.8]} 10.
Nxf4 {[%clk 0:02:55.2]} 10... Bg4 {[%clk 0:02:56.7]} 11. Qd2 {[%clk 0:02:52.6]}
11... Ne5 {[%clk 0:02:53.8]} 12. h3 {[%clk 0:02:23.4]} 12... Nxc4 {[%clk
0:02:53.4]} 13. bxc4 {[%clk 0:02:23.3]} 13... Be6 {[%clk 0:02:46.4]} 14. Rf2
{[%clk 0:01:55.6]} 14... Nd7 {[%clk 0:02:32.7]} 15. Raf1 {[%clk 0:01:52.2]}
15... Bd4 {[%clk 0:02:27.9]} 16. Kh1 {[%clk 0:01:52.1]} 16... Bxf2 {[%clk
0:02:28.7]} 17. Qxf2 {[%clk 0:01:52.7]} 17... Ne5 {[%clk 0:02:28.6]} 18. Ncd5
{[%clk 0:01:43.5]} 18... Bxd5 {[%clk 0:02:29.1]} 19. Nxd5 {[%clk 0:01:42.9]}
19... f6 {[%clk 0:02:25.2]} 20. Qh4 {[%clk 0:01:35.7]} 20... Kg7 {[%clk
0:02:22.4]} 21. Bc1 {[%clk 0:01:33.2]} 21... h5 {[%clk 0:02:04.5]} 22. Bd2
{[%clk 0:01:17.5]} 22... Rb8 {[%clk 0:01:59.6]} 23. a4 {[%clk 0:01:15.7]} 23...
b6 {[%clk 0:01:59.3]} 24. Kg1 {[%clk 0:01:10.5]} 24... a6 {[%clk 0:01:48.2]} 25.
Qf4 {[%clk 0:01:08.8]} 25... g5 {[%clk 0:01:41.2]} 26. Qf2 {[%clk 0:01:08.2]}
26... b5 {[%clk 0:01:37.9]} 27. axb5 {[%clk 0:01:04.5]} 27... axb5 {[%clk
0:01:39.1]} 28. cxb5 {[%clk 0:01:05.1]} 28... Rxb5 {[%clk 0:01:40.7]} 29. Ne3
{[%clk 0:01:03.8]} 29... Qd7 {[%clk 0:01:26.3]} 30. Nf5+ {[%clk 0:01:02.3]}
30... Kg6 {[%clk 0:01:27.7]} 31. h4 {[%clk 0:00:47.6]} 31... d5 {[%clk
0:00:32.3]} 32. hxg5 {[%clk 0:00:40.9]} 32... dxe4 {[%clk 0:00:33.1]} 33. gxf6
{[%clk 0:00:27.6]} 33... Ng4 {[%clk 0:00:24.1]} 34. Qf4 {[%clk 0:00:19.1]} 34...
e3 {[%clk 0:00:14.6]} 35. Bxe3 {[%clk 0:00:17.7]} 35... Nxe3 {[%clk 0:00:12.3]}
36. Qh6+ {[%clk 0:00:16.3]} 36... Kf7 {[%clk 0:00:12.6]} 37. Qxh5+ {[%clk
0:00:13]} 37... Ke6 {[%clk 0:00:10.8]} 38. Nxe3 {[%clk 0:00:14.4]} 38... Qd4
{[%clk 0:00:10.8]} 39. Qf5+ {[%clk 0:00:09.9]} 39... Kd6 {[%clk 0:00:11]} 40.
Qg5 {[%clk 0:00:06.6]} 40... Rbb8 {[%clk 0:00:09.2]} 41. c3 {[%clk 0:00:04.2]}
41... Qxc3 {[%clk 0:00:04.3]} 42. Qd5+ {[%clk 0:00:04.9]} 42... Kc7 {[%clk
0:00:05.8]} 43. Qe6 {[%clk 0:00:06.2]} 43... Qd4 {[%clk 0:00:06.3]} 44. f7
{[%clk 0:00:06.3]} 44... Rbd8 {[%clk 0:00:05.2]} 45. Rb1 {[%clk 0:00:03.9]}
45... Rd6 {[%clk 0:00:02.6]} 46. Qe7+ {[%clk 0:00:04.7]} 46... Rd7 {[%clk
0:00:04]} 47. Qxf8 {[%clk 0:00:05.4]} 47... Qxe3+ {[%clk 0:00:05.5]} 48. Kh1
{[%clk 0:00:06.2]} 48... Qxd3 {[%clk 0:00:04.7]} 49. Qb8+ {[%clk 0:00:07]} 49...
Kc6 {[%clk 0:00:06.1]} 50. Qb6+ {[%clk 0:00:08.1]} 50... Kd5 {[%clk 0:00:07.3]}
51. f8=Q {[%clk 0:00:07.9]} 51... Rh7+ {[%clk 0:00:06.4]} 52. Kg1 {[%clk
0:00:09.4]} 52... Qe3+ {[%clk 0:00:06.9]} 53. Qf2 {[%clk 0:00:11]} 53... Rh1+
{[%clk 0:00:08]} 54. Kxh1 {[%clk 0:00:12.6]} 54... Qxf2 {[%clk 0:00:09.9]} 55.
Rd1+ {[%clk 0:00:13.9]} 55... Kc4 {[%clk 0:00:10.9]} 56. Qe6+ {[%clk 0:00:13.7]}
56... Kb4 {[%clk 0:00:10.8]} 57. Qe1+ {[%clk 0:00:15.1]} 57... Qxe1+ {[%clk
0:00:11.4]} 58. Rxe1 {[%clk 0:00:17]} 58... c4 {[%clk 0:00:13.3]} 59. g4 {[%clk
0:00:18.7]} 59... c3 {[%clk 0:00:14.7]} 60. g5 {[%clk 0:00:20.4]} 60... c2
{[%clk 0:00:16.2]} 61. g6 {[%clk 0:00:22]} 61... Kc3 {[%clk 0:00:17.8]} 62. g7
{[%clk 0:00:23.5]} 62... c1=Q {[%clk 0:00:18.7]} 63. Rxc1+ {[%clk 0:00:24.6]}
1-0

[Event "*** MasterClass Titled Tuesday Blitz"]
[Site "Chess.com"]
[Date "2017.07.04"]
[Round "6"]
[White "Grootneus"]
[Black "Me_ch_an"]
[Result "1/2-1/2"]
[WhiteElo "2073"]
[BlackElo "2246"]
[TimeControl "180+2"]
[EndTime "14:25:46 PDT"]
[Termination "Game drawn by repetition"]

1. e4 {[%clk 0:03:01.9]} 1... c5 {[%clk 0:03:00.9]} 2. b3 {[%clk 0:03:01.9]}
2... Nc6 {[%clk 0:02:55.2]} 3. Bb2 {[%clk 0:03:01.5]} 3... e5 {[%clk 0:02:55.8]}
4. Bb5 {[%clk 0:02:56.3]} 4... d6 {[%clk 0:02:52.9]} 5. Ne2 {[%clk 0:02:55.7]}
5... Bd7 {[%clk 0:02:53.7]} 6. O-O {[%clk 0:02:56.3]} 6... g6 {[%clk 0:02:54.2]}
7. c3 {[%clk 0:02:53.4]} 7... Bg7 {[%clk 0:02:55.4]} 8. d4 {[%clk 0:02:54.2]}
8... Nge7 {[%clk 0:02:53.8]} 9. dxc5 {[%clk 0:02:40.4]} 9... dxc5 {[%clk
0:02:54.2]} 10. c4 {[%clk 0:02:42]} 10... O-O {[%clk 0:02:53.2]} 11. Bxc6 {[%clk
0:02:35]} 11... Bxc6 {[%clk 0:02:49.2]} 12. f3 {[%clk 0:02:35.8]} 12... f5
{[%clk 0:02:44]} 13. exf5 {[%clk 0:02:28.3]} 13... Nxf5 {[%clk 0:02:41.5]} 14.
Qxd8 {[%clk 0:02:27.2]} 14... Raxd8 {[%clk 0:02:41.6]} 15. Nbc3 {[%clk
0:02:28.8]} 15... Rd2 {[%clk 0:02:40.5]} 16. Bc1 {[%clk 0:02:29.8]} 16... Rd3
{[%clk 0:02:40.1]} 17. Ne4 {[%clk 0:02:19.1]} 17... Bxe4 {[%clk 0:02:29.7]} 18.
fxe4 {[%clk 0:02:20.1]} 18... Nd4 {[%clk 0:02:06.6]} 19. Nxd4 {[%clk 0:02:06.4]}
19... exd4 {[%clk 0:01:43.2]} 20. Rxf8+ {[%clk 0:01:46.9]} 20... Kxf8 {[%clk
0:01:43.7]} 21. Bf4 {[%clk 0:01:48.5]} 21... Ke7 {[%clk 0:01:42.7]} 22. Kf1
{[%clk 0:01:49.1]} 22... Ke6 {[%clk 0:01:23.6]} 23. Ke2 {[%clk 0:01:41.1]} 23...
Rc3 {[%clk 0:01:24.2]} 24. Bd2 {[%clk 0:01:23.8]} 24... Rc2 {[%clk 0:01:20.4]}
25. Kd3 {[%clk 0:01:21.2]} 25... Rb2 {[%clk 0:01:10.5]} 26. g3 {[%clk
0:01:09.4]} 26... a6 {[%clk 0:01:11.3]} 27. h3 {[%clk 0:01:04.6]} 27... b5
{[%clk 0:01:12.2]} 28. Bf4 {[%clk 0:00:54.3]} 28... bxc4+ {[%clk 0:01:03.3]} 29.
bxc4 {[%clk 0:00:56.2]} 29... h6 {[%clk 0:00:54.6]} 30. Bd2 {[%clk 0:00:51.5]}
30... h5 {[%clk 0:00:49.7]} 31. a4 {[%clk 0:00:51.1]} 31... Rb3+ {[%clk
0:00:49.3]} 32. Ke2 {[%clk 0:00:49.1]} 32... Rxg3 {[%clk 0:00:49.1]} 33. Rb1
{[%clk 0:00:50.6]} 33... Rg2+ {[%clk 0:00:49.5]} 34. Kd3 {[%clk 0:00:50.8]}
34... Rg3+ {[%clk 0:00:49]} 35. Ke2 {[%clk 0:00:51.8]} 35... d3+ {[%clk
0:00:47.9]} 36. Kf2 {[%clk 0:00:51.1]} 36... h4 {[%clk 0:00:49]} 37. Rb6+ {[%clk
0:00:45.1]} 37... Kd7 {[%clk 0:00:47.7]} 38. Rb7+ {[%clk 0:00:44.9]} 38... Ke6
{[%clk 0:00:42.2]} 39. Rxg7 {[%clk 0:00:46.3]} 39... Rxh3 {[%clk 0:00:42.9]} 40.
Rxg6+ {[%clk 0:00:46.2]} 40... Ke5 {[%clk 0:00:42.9]} 41. Rg5+ {[%clk
0:00:28.4]} 41... Kxe4 {[%clk 0:00:43.7]} 42. Rg4+ {[%clk 0:00:29.9]} 42... Ke5
{[%clk 0:00:42.8]} 43. Be3 {[%clk 0:00:20.1]} 43... Rh2+ {[%clk 0:00:42.6]} 44.
Kf1 {[%clk 0:00:20.3]} 44... d2 {[%clk 0:00:42.1]} 45. Bxd2 {[%clk 0:00:21.6]}
45... Rxd2 {[%clk 0:00:42.4]} 46. Rxh4 {[%clk 0:00:23]} 46... Rd4 {[%clk
0:00:43.3]} 47. Rh5+ {[%clk 0:00:23.6]} 47... Kd6 {[%clk 0:00:43.6]} 48. Rh6+
{[%clk 0:00:25.2]} 48... Kc7 {[%clk 0:00:44.5]} 49. Rxa6 {[%clk 0:00:26.8]}
49... Rxc4 {[%clk 0:00:45.8]} 50. Ke2 {[%clk 0:00:28.4]} 50... Kb7 {[%clk
0:00:46.7]} 51. Ra5 {[%clk 0:00:29.9]} 51... Kb6 {[%clk 0:00:44.1]} 52. Ra8
{[%clk 0:00:30.5]} 52... Kb7 {[%clk 0:00:40]} 53. Ra5 {[%clk 0:00:30.6]} 53...
Kb6 {[%clk 0:00:40.3]} 54. Ra8 {[%clk 0:00:31]} 54... Rh4 {[%clk 0:00:37.8]} 55.
Kd3 {[%clk 0:00:29.4]} 55... Kb7 {[%clk 0:00:38]} 56. Ra5 {[%clk 0:00:29.8]}
56... Kb6 {[%clk 0:00:39.3]} 57. Rb5+ {[%clk 0:00:24.7]} 57... Kc6 {[%clk
0:00:38.1]} 58. Ra5 {[%clk 0:00:26]} 58... Kb6 {[%clk 0:00:39.1]} 59. Ra8 {[%clk
0:00:27]} 59... Rh3+ {[%clk 0:00:36.6]} 60. Kc4 {[%clk 0:00:25.6]} 60... Rh4+
{[%clk 0:00:37.8]} 61. Kc3 {[%clk 0:00:26.8]} 61... Kb7 {[%clk 0:00:37.9]} 62.
Ra5 {[%clk 0:00:27.8]} 62... Kb6 {[%clk 0:00:39.2]} 63. Rb5+ {[%clk 0:00:26.4]}
63... Kc6 {[%clk 0:00:39.9]} 64. Ra5 {[%clk 0:00:25.4]} 64... Kb6 {[%clk
0:00:41.1]} 65. Ra8 {[%clk 0:00:26.3]} 65... Kb7 {[%clk 0:00:41.7]} 66. Ra5
{[%clk 0:00:27.1]} 66... Kb6 {[%clk 0:00:43.1]} 67. Ra8 {[%clk 0:00:27.7]} 67...
Kb7 {[%clk 0:00:44.1]} 68. Ra5 {[%clk 0:00:28.8]} 68... Kb6 {[%clk 0:00:45.1]}
69. Rb5+ {[%clk 0:00:30.3]} 69... Kc6 {[%clk 0:00:45.9]} 70. Ra5 {[%clk
0:00:31.8]} 70... Kd5 {[%clk 0:00:45.9]} 71. Ra8 {[%clk 0:00:30.2]} 71... Rh3+
{[%clk 0:00:46.6]} 72. Kc2 {[%clk 0:00:31.8]} 72... Kc4 {[%clk 0:00:47.3]} 73.
a5 {[%clk 0:00:29.9]} 73... Rh2+ {[%clk 0:00:48.5]} 74. Kd1 {[%clk 0:00:30.6]}
74... Ra2 {[%clk 0:00:46.9]} 75. a6 {[%clk 0:00:20.1]} 75... Kc3 {[%clk
0:00:48]} 76. a7 {[%clk 0:00:09.5]} 76... c4 {[%clk 0:00:49]} 77. Ke1 {[%clk
0:00:08.4]} 77... Ra1+ {[%clk 0:00:49.8]} 78. Ke2 {[%clk 0:00:09.4]} 78... Ra2+
{[%clk 0:00:49.7]} 79. Kd1 {[%clk 0:00:08.6]} 79... Ra1+ {[%clk 0:00:50.6]} 80.
Ke2 {[%clk 0:00:09.9]} 80... Ra2+ {[%clk 0:00:49.9]} 81. Kd1 {[%clk 0:00:11.2]}
81... Ra1+ {[%clk 0:00:44]} 82. Ke2 {[%clk 0:00:12.4]} 82... Ra6 {[%clk
0:00:35.8]} 83. Kd1 {[%clk 0:00:10.3]} 83... Ra1+ {[%clk 0:00:35.4]} 1/2-1/2